bitfinex-derivatives/quotes_SOLF0:USTF0_20250501
["timestamp","ask_amount","ask_price","bid_price","bid_amount"]
[1746092425120,6.5934,151.65,151.63,24.24]
[1746092425423,24.24,151.69,151.61,6.5947]
[1746092425617,1.888,151.68,151.61,6.5947]
[1746092425817,9.71654504,151.68,151.6,30.8351]
[1746092426017,9.71654504,151.68,151.58,24.24]
[1746092427224,6.5948,151.62,151.58,30.8359]
[1746092427618,24.24,151.65,151.58,24.24]
[1746092427819,6.5942,151.63,151.59,6.5954]
[1746092428125,6.5942,151.63,151.58,24.24]
[1746092428321,6.5942,151.63,151.6,6.5952]
[1746092428825,6.5942,151.63,151.59,6.5955]
[1746092429425,6.5946,151.62,151.58,24.24]
[1746092429625,6.5946,151.62,151.58,30.8359]
[1746092430524,1.8996,151.64,151.58,30.8359]
[1746092430727,1.8996,151.64,151.58,6.5959]
[1746092431028,3.8089,151.64,151.53,24.24]
[1746092431327,3.8089,151.64,151.54,6.5977]
[1746092431624,3.8089,151.64,151.53,24.24]
[1746092432431,3.8089,151.64,151.53,30.838]
[1746092432629,12.5326789,151.63,151.53,30.838]
[1746092432825,12.5326789,151.63,151.53,24.24]
[1746092433025,12.5326789,151.63,151.52,6.5986]
[1746092433026,6.5974,151.56,151.52,6.5986]
[1746092433829,6.5974,151.56,151.53,6.5983]
[1746092434129,24.26,151.59,151.5,546.48]
[1746092435130,24.26,151.59,151.54,6.5976]
[1746092436018,6.5965,151.58,151.54,6.5976]
[1746092436224,24.26,151.59,151.5,546.48]
[1746092436431,2.0341,151.62,151.5,546.48]
[1746092436831,2.0341,151.62,151.56,6.5967]
[1746092437022,2.0341,151.62,151.55,24.26]
[1746092437726,2.0341,151.62,151.52,24.26]
[1746092437926,2.0341,151.62,151.54,6.5978]
[1746092438128,6.5968,151.57,151.54,6.5978]
[1746092439134,6.5968,151.57,151.53,6.5981]
[1746092440229,6.5968,151.57,151.54,6.5979]
[1746092440427,2.0341,151.62,151.52,24.26]
[1746092440838,2.0341,151.62,151.55,6.5972]
[1746092441227,6.5962,151.58,151.55,6.5972]
[1746092441440,2.0341,151.62,151.56,6.597]
[1746092441734,2.0341,151.62,151.52,24.26]
[1746092442836,6.5966,151.57,151.52,24.26]
[1746092443236,6.5966,151.57,151.54,6.5977]
[1746092443439,6.5972,151.56,151.52,24.26]
[1746092443637,2.0341,151.62,151.47,358.0]
[1746092443937,24.26,151.59,151.48,24.26]
[1746092444240,2.0191,151.58,151.5,6.5993]
[1746092444439,6.5984,151.53,151.5,6.5993]
[1746092445239,6.5982,151.54,151.51,6.599]
[1746092445440,2.0191,151.58,151.51,6.599]
[1746092445739,6.5983,151.54,151.51,6.599]
[1746092445933,2.0191,151.58,151.51,6.599]
[1746092446438,6.5981,151.54,151.51,6.599]
[1746092447041,6.5987,151.52,151.49,6.5998]
[1746092447242,3.9497,151.58,151.48,24.26]
[1746092447648,3.9497,151.58,151.51,6.599]
[1746092448538,6.598,151.54,151.51,6.599]
[1746092448845,3.9497,151.58,151.48,24.26]
[1746092449054,2.0191,151.58,151.48,24.26]
[1746092449749,3.9432,151.58,151.48,24.26]
[1746092450349,6.5984,151.53,151.5,6.5994]
[1746092451350,6.5981,151.54,151.48,24.26]
[1746092451552,3.9432,151.58,151.48,24.26]
[1746092451849,6.5983,151.53,151.5,6.5993]
[1746092452047,3.9432,151.58,151.48,24.26]
[1746092452348,6.5977,151.55,151.48,24.26]
[1746092452652,3.9432,151.58,151.48,24.26]
[1746092453044,6.5979,151.54,151.51,6.5989]
[1746092453245,6.5979,151.54,151.48,24.26]
[1746092454153,6.5979,151.54,151.51,6.599]
[1746092454754,6.5983,151.53,151.51,6.599]
[1746092454945,6.5983,151.53,151.5,6.5994]
[1746092455150,3.9432,151.58,151.5,6.5994]
[1746092455349,6.5991,151.52,151.48,24.26]
[1746092455653,11.78511726,151.58,151.49,6.5998]
[1746092455855,6.5987,151.53,151.48,24.26]
[1746092456056,11.78511726,151.58,151.49,6.5997]
[1746092456554,11.78511726,151.58,151.5,6.5995]
[1746092457057,6.5985,151.53,151.5,6.5995]
[1746092457459,11.78511726,151.58,151.49,6.5999]
[1746092457857,11.78511726,151.58,151.48,24.26]
[1746092458049,11.78511726,151.58,151.49,6.5999]
[1746092459057,6.5989,151.52,151.49,6.5999]
[1746092459259,24.14,151.55,151.48,30.8603]
[1746092459458,24.14,151.55,151.48,24.26]
[1746092459651,6.599,151.52,151.48,24.26]
[1746092460359,6.599,151.52,151.49,6.6]
[1746092460558,6.5985,151.53,151.48,24.26]
[1746092461058,6.5989,151.52,151.49,6.5998]
[1746092461659,6.5989,151.52,151.5,6.5996]
[1746092462358,24.14,151.55,151.51,6.5989]
[1746092462859,6.5981,151.54,151.51,6.5989]
[1746092463160,24.14,151.55,151.5,6.5994]
[1746092463460,6.5985,151.53,151.48,24.26]
[1746092463662,6.5985,151.53,151.5,6.5993]
[1746092463860,6.5985,151.53,151.48,24.26]
[1746092464163,6.5985,151.53,151.5,6.5992]
[1746092464365,6.5988,151.52,151.5,6.5992]
[1746092465560,6.5985,151.53,151.51,6.5992]
[1746092466061,6.5985,151.53,151.48,24.26]
[1746092466361,6.5985,151.53,151.5,6.5994]
[1746092466560,6.5988,151.52,151.5,6.5994]
[1746092466755,6.5988,151.52,151.48,24.26]
[1746092466954,6.5988,151.52,151.5,6.5993]
[1746092467261,6.5985,151.53,151.5,6.5993]
[1746092468565,6.5985,151.53,151.51,6.5992]
[1746092470668,6.5981,151.54,151.51,6.5992]
[1746092471659,6.5984,151.53,151.51,6.5992]
[1746092471865,6.5984,151.53,151.5,6.5994]
[1746092472067,24.14,151.55,151.48,24.26]
[1746092472271,24.14,151.55,151.49,6.5997]
[1746092472569,24.14,151.55,151.48,24.26]
[1746092472868,6.599,151.52,151.49,6.5998]
[1746092473367,24.14,151.62,151.48,32.10191726]
[1746092473567,4.0621,151.59,151.48,24.26]
[1746092473869,6.5971,151.56,151.51,6.5989]
[1746092474170,24.14,151.58,151.48,24.26]
[1746092474472,6.5983,151.54,151.5,6.5995]
[1746092474669,6.5983,151.54,151.48,24.26]
[1746092474969,24.14,151.58,151.48,24.26]
[1746092475865,6.5967,151.57,151.54,6.5977]
[1746092476263,30.7364,151.58,151.55,6.5974]
[1746092476771,6.5966,151.57,151.54,6.5975]
[1746092476966,24.14,151.58,151.48,24.26]
[1746092477372,30.7365,151.58,151.48,24.26]
[1746092477568,24.14,151.58,151.48,24.26]
[1746092477766,24.14,151.58,151.48,32.10191726]
[1746092478072,6.5968,151.57,151.54,6.5979]
[1746092480072,30.7364,151.58,151.55,6.5974]
[1746092480274,24.14,151.58,151.48,32.10191726]
[1746092480567,30.7364,151.58,151.54,6.5975]
[1746092480768,30.7364,151.58,151.48,32.10191726]
[1746092481073,24.14,151.58,151.56,6.597]
[1746092481275,4.0621,151.59,151.52,23.88]
[1746092481576,25.8949,151.61,151.53,23.88]
[1746092482674,25.8949,151.61,151.54,6.5975]
[1746092482873,25.8949,151.61,151.53,23.88]
[1746092483877,6.5964,151.58,151.55,6.5972]
[1746092485077,6.5967,151.57,151.54,6.5977]
[1746092485278,25.8949,151.61,151.5,23.88]
[1746092485578,6.5964,151.58,151.55,6.5972]
[1746092485777,25.8949,151.61,151.5,23.88]
[1746092486178,6.597,151.57,151.54,6.5979]
[1746092486373,25.8949,151.61,151.5,23.88]
[1746092486779,6.5968,151.57,151.54,6.5976]
[1746092487678,6.5968,151.57,151.55,6.5974]
[1746092487875,6.597,151.56,151.5,23.88]
[1746092488280,6.597,151.56,151.53,6.598]
[1746092488981,6.597,151.56,151.54,6.5978]
[1746092490281,6.5968,151.57,151.54,6.5978]
[1746092491282,6.5971,151.56,151.54,6.5978]
[1746092491784,25.8949,151.61,151.54,6.5978]
[1746092491982,6.5968,151.57,151.54,6.5978]
[1746092492784,30.4762,151.58,151.55,6.5974]
[1746092493085,30.4762,151.58,151.5,23.88]
[1746092493784,30.4762,151.58,151.55,6.5972]
[1746092494081,6.5966,151.57,151.5,23.88]
[1746092494387,23.88,151.58,151.5,23.88]
[1746092494785,6.5971,151.56,151.5,23.88]
[1746092495188,23.88,151.58,151.5,23.88]
[1746092495383,6.5975,151.55,151.5,23.88]
[1746092495583,23.88,151.58,151.5,23.88]
[1746092496086,6.5972,151.56,151.53,6.598]
[1746092496993,6.5968,151.57,151.54,6.5979]
[1746092497290,23.88,151.58,151.54,6.5979]
[1746092497588,6.5967,151.57,151.54,6.5979]
[1746092499187,23.88,151.58,151.53,6.5982]
[1746092499586,4.0541,151.57,151.53,6.5982]
[1746092499889,4.0541,151.57,151.5,23.88]
[1746092500291,6.5982,151.54,151.51,6.599]
[1746092500491,4.0541,151.57,151.51,6.599]
[1746092500793,6.5981,151.54,151.51,6.599]
[1746092501289,6.5981,151.54,151.52,6.5987]
[1746092502192,6.5981,151.54,151.51,6.5989]
[1746092503893,6.5984,151.53,151.5,30.4794]
[1746092504093,6.5984,151.53,151.5,23.88]
[1746092504292,6.5981,151.54,151.51,6.5991]
[1746092504787,6.5974,151.56,151.51,6.5991]
[1746092504993,4.0541,151.57,151.51,6.5991]
[1746092505394,6.5981,151.54,151.51,6.5991]
[1746092505895,6.5978,151.55,151.52,6.5986]
[1746092506396,4.0541,151.57,151.52,6.5986]
[1746092506695,4.0541,151.57,151.51,6.599]
[1746092507187,6.5981,151.54,151.51,6.599]
[1746092507684,6.5981,151.54,151.52,6.5987]
[1746092508297,4.0541,151.57,151.52,6.5987]
[1746092508497,4.0541,151.57,151.51,6.599]
[1746092508699,4.0541,151.57,151.5,23.88]
[1746092508892,6.5977,151.55,151.5,23.88]
[1746092509090,6.5977,151.55,151.52,6.5987]
[1746092509799,6.598,151.54,151.51,6.599]
[1746092510597,6.598,151.54,151.52,6.5987]
[1746092510998,6.598,151.54,151.5,23.88]
[1746092511297,6.598,151.54,151.51,6.599]
[1746092514304,6.5984,151.53,151.51,6.599]
[1746092514601,4.0541,151.57,151.51,6.599]
[1746092514801,6.5983,151.54,151.51,6.599]
[1746092515193,4.0541,151.57,151.51,6.599]
[1746092515397,6.5986,151.53,151.5,23.88]
[1746092515996,6.5986,151.53,151.5,30.4793]
[1746092516299,6.5981,151.54,151.5,23.88]
[1746092517000,4.0541,151.57,151.5,23.88]
[1746092517192,4.0541,151.57,151.47,23.76]
[1746092517392,6.5986,151.53,151.5,6.5996]
[1746092517799,4.0541,151.57,151.5,6.5996]
[1746092518500,6.5985,151.53,151.5,6.5996]
[1746092520000,6.5985,151.53,151.47,23.76]
[1746092520001,6.5989,151.52,151.49,6.5998]
[1746092520202,4.0541,151.57,151.47,23.76]
[1746092521094,6.599,151.52,151.49,6.6001]
[1746092522098,6.599,151.52,151.47,23.76]
[1746092522603,6.599,151.52,151.49,6.5998]
[1746092522901,31.60191726,151.53,151.44,23.76]
[1746092523103,23.76,151.52,151.45,6.6016]
[1746092523302,25.7352,151.52,151.45,6.6016]
[1746092524005,6.6001,151.49,151.45,6.6016]
[1746092524408,6.6001,151.49,151.46,6.6013]
[1746092525608,6.5998,151.5,151.46,6.6013]
[1746092525804,3.8478,151.51,151.44,23.76]
[1746092526211,10.4472,151.51,151.44,23.76]
[1746092526408,6.5994,151.51,151.44,23.76]
[1746092528105,6.5994,151.51,151.48,6.6005]
[1746092528310,30.3588,151.52,151.44,23.76]
[1746092528509,6.5988,151.52,151.44,23.76]
[1746092528707,27.7872,151.55,151.44,23.76]
[1746092528904,6.5987,151.53,151.44,23.76]
[1746092529510,6.5987,151.53,151.5,6.5996]
[1746092530105,6.5988,151.52,151.5,6.5996]
[1746092530709,6.5985,151.53,151.5,6.5996]
[1746092531407,6.5988,151.52,151.5,6.5996]
[1746092531607,27.7872,151.55,151.5,6.5996]
[1746092531910,6.5986,151.53,151.5,6.5996]
[1746092532513,6.5986,151.53,151.51,6.5991]
[1746092532711,6.598,151.54,151.51,6.5991]
[1746092533413,6.5983,151.53,151.51,6.5991]
[1746092534017,6.5981,151.54,151.51,6.5991]
[1746092534212,27.7872,151.55,151.5,6.5996]
[1746092534611,6.5981,151.54,151.5,6.5996]
[1746092534814,27.7872,151.55,151.5,6.5996]
[1746092535215,6.5983,151.54,151.5,6.5996]
[1746092535718,6.5984,151.53,151.5,6.5996]
[1746092538211,6.5981,151.54,151.48,23.76]
[1746092538716,27.7872,151.55,151.48,23.76]
[1746092538915,27.7872,151.55,151.5,6.5995]
[1746092539217,27.7872,151.55,151.48,23.76]
[1746092539420,6.599,151.52,151.49,6.5999]
[1746092539719,27.7872,151.55,151.48,23.76]
[1746092539914,6.5995,151.51,151.48,30.3603]
[1746092540225,27.7872,151.55,151.48,23.76]
[1746092540716,6.5984,151.53,151.49,6.6]
[1746092541019,27.7872,151.55,151.48,23.76]
[1746092541820,6.5979,151.54,151.51,6.599]
[1746092544317,4.0272,151.55,151.48,23.76]
[1746092544523,23.78,151.59,151.49,7.84191726]
[1746092545214,6.5968,151.57,151.54,6.5976]
[1746092545518,23.78,151.59,151.49,7.84191726]
[1746092546120,6.5973,151.56,151.53,6.5981]
[1746092546320,6.5973,151.56,151.49,7.84191726]
[1746092546520,23.78,151.59,151.49,7.84191726]
[1746092546821,6.5969,151.57,151.54,6.5976]
[1746092547026,23.78,151.59,151.49,7.84191726]
[1746092547216,23.78,151.59,151.5,23.78]
[1746092547523,6.5964,151.58,151.55,6.5972]
[1746092547824,23.78,151.59,151.55,6.5972]
[1746092548225,6.5962,151.58,151.55,6.5972]
[1746092548421,23.78,151.59,151.55,6.5972]
[1746092548924,6.5965,151.58,151.55,6.5972]
[1746092549425,23.78,151.59,151.55,6.5972]
[1746092549621,6.5964,151.58,151.55,6.5972]
[1746092549819,6.5964,151.58,151.56,6.5969]
[1746092550020,23.78,151.59,151.52,7.84191726]
[1746092550221,12.4938,151.61,151.59,6.5957]
[1746092550423,12.4938,151.61,151.54,23.78]
[1746092551026,10.5402,151.61,151.59,6.5956]
[1746092551825,3.9451,151.61,151.54,23.78]
[1746092552425,6.5953,151.6,151.54,23.78]
[1746092552826,3.9451,151.61,151.54,23.78]
[1746092553027,6.5965,151.58,151.55,6.5973]
[1746092553228,6.5965,151.58,151.54,23.78]
[1746092554130,6.5965,151.58,151.55,6.5974]
[1746092554432,6.5965,151.58,151.54,23.78]
[1746092555131,6.5965,151.58,151.55,6.5971]
[1746092555331,6.5965,151.58,151.54,23.78]
[1746092556131,6.5959,151.59,151.54,23.78]
[1746092556640,3.9451,151.61,151.54,23.78]
[1746092556641,6.5961,151.58,151.54,23.78]
[1746092557241,6.5961,151.58,151.55,6.5974]
[1746092558141,6.5961,151.58,151.56,6.597]
[1746092558344,6.596,151.59,151.54,23.78]
[1746092558842,6.596,151.59,151.56,6.5967]
[1746092559143,6.596,151.59,151.54,23.78]
[1746092559642,6.5954,151.6,151.54,23.78]
[1746092560141,6.5954,151.6,151.57,6.5963]
[1746092561137,3.9451,151.61,151.57,6.5963]
[1746092561341,3.9451,151.61,151.54,23.78]
[1746092561742,6.5956,151.6,151.54,23.78]
[1746092562342,6.5956,151.6,151.57,6.5962]
[1746092562639,6.5958,151.59,151.57,6.5962]
[1746092563543,6.5955,151.6,151.57,6.5962]
[1746092563837,3.9451,151.61,151.58,6.5959]
[1746092564037,6.5953,151.6,151.58,6.5959]
[1746092564246,3.9451,151.61,151.54,23.78]
[1746092564543,3.9451,151.61,151.56,6.5967]
[1746092564840,6.5955,151.6,151.56,6.5967]
[1746092565643,6.5958,151.59,151.56,6.5967]
[1746092566041,6.5958,151.59,151.57,6.5966]
[1746092566342,6.593,151.66,151.58,23.76]
[1746092566641,7.84191726,151.69,151.59,23.76]
[1746092566842,6.5929,151.66,151.59,23.76]
[1746092567539,6.5929,151.66,151.62,6.594]
[1746092568848,6.5931,151.65,151.62,6.594]
[1746092569937,23.76,151.67,151.59,23.76]
[1746092570644,6.5938,151.64,151.59,23.76]
[1746092571047,6.5938,151.64,151.61,6.5948]
[1746092571342,6.594,151.63,151.59,23.76]
[1746092571845,6.594,151.63,151.61,6.5948]
[1746092572640,6.5937,151.64,151.61,6.5948]
[1746092572846,2.0861,151.65,151.61,6.5948]
[1746092573346,6.5938,151.64,151.61,6.5948]
[1746092574146,2.0861,151.65,151.59,23.76]
[1746092574546,2.0861,151.65,151.61,6.5947]
[1746092574847,2.0861,151.65,151.59,23.76]
[1746092575649,6.5935,151.64,151.61,6.5946]
[1746092576350,2.0861,151.65,151.59,23.76]
[1746092577352,6.5936,151.64,151.62,6.5944]
[1746092578049,6.5942,151.63,151.59,23.76]
[1746092578350,2.0861,151.65,151.59,23.76]
[1746092578541,2.0861,151.65,151.56,23.74]
[1746092579050,6.5947,151.62,151.59,6.5954]
[1746092579350,2.0861,151.65,151.56,23.74]
[1746092579652,6.5949,151.61,151.59,6.5957]
[1746092579844,6.5949,151.61,151.56,23.74]
[1746092580046,2.0861,151.65,151.56,23.74]
[1746092580352,2.0861,151.65,151.58,6.5959]
[1746092580550,7.84191726,151.63,151.53,23.74]
[1746092580750,25.7017,151.62,151.53,23.74]
[1746092581152,6.5959,151.59,151.56,6.597]
[1746092581351,25.7017,151.62,151.53,23.74]
[1746092581546,6.5964,151.58,151.55,6.5971]
[1746092581850,25.7017,151.62,151.55,6.5971]
[1746092582152,6.5959,151.59,151.55,6.5971]
[1746092582551,6.5959,151.59,151.56,6.5968]
[1746092582851,25.7017,151.62,151.53,23.74]
[1746092582852,6.5962,151.58,151.53,23.74]
[1746092583153,6.5962,151.58,151.55,6.5972]
[1746092584053,6.5959,151.59,151.56,6.5969]
[1746092586252,6.5953,151.6,151.58,6.5961]
[1746092586452,25.7017,151.62,151.58,6.5961]
[1746092586641,25.7017,151.62,151.53,31.58191726]
[1746092586846,6.5951,151.61,151.58,6.5959]
[1746092587046,25.7017,151.62,151.53,31.58191726]
[1746092587255,25.7017,151.62,151.53,23.74]
[1746092587753,6.596,151.59,151.56,6.5968]
[1746092588051,25.7017,151.62,151.56,6.5968]
[1746092588256,25.7017,151.62,151.53,23.74]
[1746092588755,6.596,151.59,151.56,6.5969]
[1746092589353,25.7017,151.62,151.56,6.5969]
[1746092589951,6.5959,151.59,151.56,6.5969]
[1746092590448,6.5961,151.58,151.56,6.5969]
[1746092590655,6.5961,151.58,151.55,6.5973]
[1746092591255,7.84191726,151.6,151.54,6.5978]
[1746092592059,6.5968,151.57,151.54,6.5978]
[1746092593450,6.5964,151.58,151.55,6.5974]
[1746092593649,1.908,151.59,151.55,6.5974]
[1746092593955,8.5041,151.59,151.55,6.5974]
[1746092594157,1.908,151.59,151.55,6.5974]
[1746092594359,1.908,151.59,151.54,6.5977]
[1746092594856,6.597,151.56,151.53,23.74]
[1746092595259,6.597,151.56,151.5,31.58191726]
[1746092595761,6.5967,151.57,151.54,6.5976]
[1746092602165,1.9617,151.62,151.5,31.58191726]
[1746092602363,25.6935,151.63,151.53,7.84191726]
[1746092602563,25.6935,151.63,151.54,23.74]
[1746092603268,32.2878,151.63,151.6,6.5948]
[1746092603569,8.5478,151.63,151.6,6.5948]
[1746092603770,6.5943,151.63,151.6,6.5948]
[1746092606477,23.74,151.66,151.58,23.74]
[1746092606868,8.6794,151.65,151.62,6.5941]
[1746092607266,6.5933,151.65,151.58,23.74]
[1746092607464,6.5933,151.65,151.62,6.594]
[1746092608076,6.5933,151.65,151.63,6.5939]
[1746092609069,6.5933,151.65,151.62,6.5942]
[1746092609280,23.74,151.66,151.58,23.74]
[1746092609670,30.333,151.66,151.63,6.5938]
[1746092610274,6.5932,151.65,151.63,6.5938]
[1746092610477,23.74,151.66,151.62,6.5942]
[1746092610777,6.5934,151.65,151.62,6.5942]
[1746092611774,6.5936,151.64,151.61,6.5945]
[1746092613278,23.74,151.66,151.62,6.5944]
[1746092613478,23.74,151.66,151.58,23.74]
[1746092613778,6.5937,151.64,151.61,6.5945]
[1746092614384,6.5933,151.65,151.62,6.5943]
[1746092615477,30.3329,151.66,151.63,6.5939]
[1746092615678,23.74,151.66,151.63,6.5939]
[1746092615879,23.74,151.66,151.58,23.74]
[1746092616076,6.5931,151.65,151.62,6.5942]
[1746092616276,23.74,151.66,151.58,23.74]
[1746092616679,30.333,151.66,151.63,6.5937]
[1746092617976,6.5931,151.65,151.63,6.5937]
[1746092618181,23.74,151.66,151.63,6.5937]
[1746092618376,6.5923,151.67,151.58,31.58191726]
[1746092618577,31.56191726,151.69,151.58,31.58191726]
[1746092618875,6.5929,151.66,151.63,6.5935]
[1746092619181,6.5929,151.66,151.58,31.58191726]
[1746092619382,6.5929,151.66,151.64,6.5933]
[1746092621681,6.5923,151.67,151.64,6.5933]
[1746092621878,5.8992,151.7,151.62,23.72]
[1746092621879,4.0033,151.7,151.62,23.72]
[1746092622075,6.5907,151.71,151.63,23.72]
[1746092622279,6.5907,151.71,151.68,6.5914]
[1746092622480,23.72,151.74,151.68,6.5914]
[1746092622679,6.5902,151.72,151.68,6.5914]
[1746092623378,6.5902,151.72,151.69,6.5913]
[1746092623785,23.72,151.74,151.63,23.72]
[1746092624085,23.72,151.74,151.7,6.5906]
[1746092624689,6.5896,151.73,151.7,6.5906]
[1746092625590,6.5901,151.72,151.7,6.5906]
[1746092625784,6.5901,151.72,151.69,6.5912]
[1746092628291,23.72,151.74,151.67,23.72]
[1746092628682,6.5911,151.7,151.67,30.312]
[1746092628888,6.5911,151.7,151.67,6.592]
[1746092629792,23.72,151.74,151.64,23.72]
[1746092630596,6.5912,151.7,151.67,6.5922]
[1746092630894,23.72,151.74,151.64,23.72]
[1746092631093,6.592,151.68,151.65,6.5929]
[1746092631286,23.72,151.74,151.64,23.72]
[1746092631487,23.72,151.74,151.61,7.84191726]
[1746092631687,23.72,151.74,151.67,6.5919]
[1746092631688,6.5911,151.7,151.67,6.5919]
[1746092632990,6.5907,151.71,151.68,6.5918]
[1746092633295,23.72,151.74,151.68,6.5918]
[1746092633493,10.7363,151.75,151.66,23.7]
[1746092633695,4.1472,151.75,151.67,23.7]
[1746092634198,6.5897,151.73,151.67,23.7]
[1746092634898,4.1472,151.75,151.67,23.7]
[1746092635299,1.947,151.74,151.67,23.7]
[1746092635500,6.5904,151.72,151.69,6.5913]
[1746092636206,6.5906,151.71,151.69,6.5913]
[1746092636599,1.947,151.74,151.69,6.5913]
[1746092636799,6.5905,151.71,151.69,6.5913]
[1746092637103,1.947,151.74,151.69,6.5913]
[1746092637403,6.5903,151.72,151.7,6.5909]
[1746092637703,1.947,151.74,151.67,23.7]
[1746092637904,6.5896,151.73,151.67,23.7]
[1746092638205,1.947,151.74,151.67,23.7]
[1746092638405,6.5901,151.72,151.7,6.5906]
[1746092641007,6.5901,151.72,151.68,6.5916]
[1746092641305,6.5898,151.73,151.68,6.5916]
[1746092641603,1.947,151.74,151.68,6.5916]
[1746092641803,6.5904,151.72,151.68,6.5916]
[1746092642404,6.5905,151.71,151.68,6.5916]
[1746092642701,1.947,151.74,151.68,6.5916]
[1746092642900,6.5908,151.71,151.68,6.5916]
[1746092643906,1.947,151.74,151.67,30.292]
[1746092644098,4.1472,151.75,151.67,23.7]
[1746092644300,4.1472,151.75,151.67,31.54191726]
[1746092644503,6.5898,151.73,151.67,31.54191726]
[1746092644801,4.1472,151.75,151.67,31.54191726]
[1746092644997,6.5904,151.72,151.69,6.5912]
[1746092645999,6.5904,151.72,151.7,6.5909]
[1746092649110,4.1472,151.75,151.71,6.5901]
[1746092649408,4.1472,151.75,151.67,31.54191726]
[1746092649604,4.1472,151.75,151.67,23.7]
[1746092649806,1.9739,151.74,151.67,23.7]
[1746092650208,6.591,151.7,151.68,6.5916]
[1746092650409,1.9739,151.74,151.68,6.5916]
[1746092650711,1.9739,151.74,151.67,23.7]
[1746092650906,6.5907,151.71,151.69,6.5913]
[1746092651610,6.5907,151.71,151.68,6.5916]
[1746092651806,6.5907,151.71,151.67,23.7]
[1746092652112,6.5907,151.71,151.69,6.5913]
[1746092652305,6.5907,151.71,151.67,23.7]
[1746092652502,6.5912,151.7,151.67,23.7]
[1746092653204,6.5912,151.7,151.68,6.5914]
[1746092653405,6.5907,151.71,151.68,6.5914]
[1746092654207,6.5907,151.71,151.69,6.5913]
[1746092655409,6.5903,151.72,151.69,6.5913]
[1746092656615,6.5905,151.71,151.69,6.5913]
[1746092657118,1.9739,151.74,151.69,6.5913]
[1746092657411,6.5903,151.72,151.69,6.5913]
[1746092658207,1.9739,151.74,151.69,6.5913]
[1746092658715,7.84191726,151.73,151.64,23.7]
[1746092659414,6.5912,151.7,151.66,6.5924]
[1746092659722,23.7,151.72,151.66,6.5924]
[1746092660015,6.5907,151.71,151.68,6.5914]
[1746092660412,23.7,151.72,151.64,23.7]
[1746092660615,6.5905,151.71,151.68,6.5914]
[1746092660813,6.5905,151.71,151.64,23.7]
[1746092661209,6.5905,151.71,151.68,6.5914]
[1746092662111,6.5905,151.71,151.69,6.5913]
[1746092662313,6.5905,151.71,151.64,23.7]
[1746092662512,6.5912,151.7,151.64,23.7]
[1746092664117,23.7,151.72,151.64,23.7]
[1746092664417,1.9739,151.74,151.64,23.7]
[1746092664917,6.5907,151.71,151.69,6.5913]
[1746092665118,6.5907,151.71,151.64,23.7]
[1746092665718,6.5907,151.71,151.68,6.5914]
[1746092666222,6.5907,151.71,151.69,6.5913]
[1746092666517,6.5907,151.71,151.64,23.7]
[1746092668419,6.5907,151.71,151.69,6.5913]